fUST/lending_fUST_20250506
["ID","MTS","AMOUNT","RATE_DAILY","PERIOD"]
[360007084,1746477058802,-400.0,0.00033424,8]
[360007085,1746477058811,-433.92,0.00033424,8]
[360007086,1746477058820,-371.96373117,0.00033424,8]
[360007087,1746477058830,-400.0,0.00033424,8]
[360007088,1746477058839,-400.0,0.00033424,8]
[360007089,1746477058848,-487.64,0.00033424,8]
[360007090,1746477058858,-400.0,0.00033424,8]
[360007091,1746477058867,-918.96,0.00033424,8]
[360007092,1746477058877,-400.0,0.00033424,8]
[360007093,1746477058886,-1000.0,0.00033424,8]
[360007094,1746477058895,-3259.27,0.00033424,8]
[360007095,1746477058905,-400.0,0.00033424,8]
[360007096,1746477058915,-2006.72,0.00033424,8]
[360007097,1746477058926,-497.93,0.00033424,8]
[360007098,1746477058936,-1436.28,0.00033424,8]
[360007099,1746477058947,-400.0,0.00033424,8]
[360007100,1746477058956,-469.87,0.00033424,8]
[360007101,1746477058966,-400.0,0.00033424,8]
[360007102,1746477058976,-1090.39,0.00033424,8]
[360007103,1746477058985,-400.0,0.00033424,8]
[360007104,1746477058995,-4062.47,0.00033424,8]
[360007105,1746477059004,-1114.33,0.00033424,8]
[360007106,1746477059013,-400.0,0.00033424,8]
[360007107,1746477059023,-2077.09,0.00033424,8]
[360007108,1746477059033,-400.0,0.00033424,8]
[360007109,1746477059042,-1456.15,0.00033424,8]
[360007110,1746477059052,-546.39,0.00033424,8]
[360007111,1746477059062,-400.0,0.00033424,8]
[360007112,1746477059073,-4476.54,0.00033424,8]
[360007113,1746477059083,-638.56,0.00033424,8]
[360007114,1746477059092,-400.0,0.00033424,8]
[360007115,1746477059101,-683.64,0.00033424,8]
[360007116,1746477059111,-400.0,0.00033424,8]
[360007117,1746477059120,-400.0,0.00033424,8]
[360007118,1746477059130,-619.75,0.00033424,8]
[360007119,1746477059141,-325.563528,0.00033424,14]
[360007120,1746477059151,-400.0,0.00033424,8]
[360007121,1746477059161,-325.563528,0.00033424,14]
[360007122,1746477059171,-400.0,0.00033424,8]
[360007123,1746477059180,-400.0,0.00033424,8]
[360007124,1746477059190,-526.54,0.00033424,8]
[360007125,1746477059199,-325.563528,0.00033424,14]
[360007126,1746477059333,-325.563528,0.00033424,14]
[360007127,1746477059342,-758.85,0.00033424,8]
[360007128,1746477059352,-24521.13,0.00033424,8]
[360007129,1746477059362,-400.0,0.00033424,8]
[360007130,1746477059371,-400.0,0.00033424,8]
[360007131,1746477059380,-400.0,0.00033424,8]
[360007132,1746477059390,-400.0,0.00033424,8]
[360007133,1746477059400,-400.0,0.00033424,8]
[360007134,1746477059409,-400.0,0.00033424,8]
[360007135,1746477059420,-1075.31,0.00033424,8]
[360007136,1746477059430,-400.0,0.00033424,8]
[360007137,1746477059440,-989.84,0.00033424,8]
[360007138,1746477059450,-400.0,0.00033424,8]
[360007139,1746477059459,-2581.34,0.00033424,8]
[360007140,1746477059469,-503.67122609,0.00033424,8]
[360007141,1746477059479,-498.57,0.00033424,8]
[360007142,1746477059488,-562.95,0.00033424,8]
[360007143,1746477059498,-400.0,0.00033424,8]
[360007144,1746477059507,-400.0,0.00033424,8]
[360007145,1746477059516,-563.56,0.00033424,8]
[360007146,1746477059526,-2005.02,0.00033424,8]
[360007147,1746477059539,-206.857404,0.00033424,8]
[360007148,1746477059550,-400.0,0.00033424,8]
[360007149,1746477059559,-1801.43,0.00033424,8]
[360007150,1746477059569,-9097.21,0.00033424,8]
[360007151,1746477059578,-3028.71,0.00033424,8]
[360007152,1746477059588,-400.0,0.00033424,8]
[360007153,1746477059598,-400.0,0.00033424,8]
[360007154,1746477059609,-400.0,0.00033424,8]
[360007155,1746477059619,-1797.43,0.00033424,8]
[360007156,1746477059629,-531.52,0.00033424,8]
[360007157,1746477059638,-420.26230477,0.00033424,8]
[360007158,1746477059648,-449.113188,0.00033424,14]
[360007159,1746477059657,-449.113188,0.00033424,14]
[360007160,1746477059667,-6864.69,0.00033424,8]
[360007161,1746477059676,-400.0,0.00033424,8]
[360007162,1746477059685,-400.0,0.00033424,8]
[360007163,1746477059694,-4586.98,0.00033424,8]
[360007164,1746477059704,-449.113188,0.00033424,14]
[360007165,1746477059713,-449.113188,0.00033424,14]
[360007166,1746477059722,-523.76694441,0.00033424,8]
[360007167,1746477059731,-1501.28,0.00033424,8]
[360007168,1746477059740,-400.0,0.00033424,8]
[360007169,1746477059749,-400.0,0.00033424,8]
[360007170,1746477059759,-2940.89,0.00033424,8]
[360007171,1746477059768,-400.0,0.00033424,2]
[360007172,1746477059778,-3563.17,0.00033424,8]
[360007173,1746477059787,-284.76256857,0.00033424,8]
[360007174,1746477059796,-523.85,0.00033424,8]
[360007175,1746477059806,-400.0,0.00033424,8]
[360007176,1746477059815,-1429.01,0.00033424,8]
[360007177,1746477059825,-400.0,0.00033424,2]
[360007178,1746477059835,-726.2,0.00033424,8]
[360007179,1746477059844,-400.0,0.00033424,8]
[360007180,1746477059853,-160.48504546,0.00033424,8]
[360007181,1746477059863,-494.32,0.00033424,8]
[360007182,1746477059873,-405.21092957,0.00033424,8]
[360007183,1746477059883,-371.93485704,0.00033424,8]
[360007184,1746477059893,-400.0,0.00033424,8]
[360007185,1746477059902,-400.0,0.00033424,2]
[360007186,1746477059912,-467.51131593,0.00033424,8]
[360007187,1746477059922,-2667.55,0.00033424,8]
[360007188,1746477059932,-1500.0,0.00033425,2]
[360007189,1746477059942,-158.1434801,0.00033425,30]
[360007190,1746477059951,-153.0,0.00033425,30]
[360007191,1746477059961,-153.0,0.00033425,30]
[360007192,1746477059970,-1299.0,0.00033425,2]
[360007193,1746477059979,-1299.0,0.00033452,2]
[360007194,1746477059988,-160.0,0.00033463,3]
[360007195,1746477059998,-1299.0,0.0003348,2]
[360007196,1746477060007,-1817.33,0.000335,30]
[360007197,1746477060017,-1320.41424482,0.00033507,2]
[360007198,1746477060027,-151.0,0.000336,13]
[360007199,1746477060038,-300.0,0.00033673,5]
[360007200,1746477060047,-12607.13495863,0.00033681,2]
[360007201,1746477060057,-151.0,0.00033698,14]
[360007202,1746477060066,-250.580032,0.00033698,14]
[360007203,1746477060075,-669.864565,0.00033698,14]
[360007204,1746477060085,-669.864565,0.00033698,14]
[360007205,1746477060095,-346.754623,0.00033698,14]
[360007206,1746477060104,-346.754623,0.00033698,14]
[360007207,1746477060114,-346.754623,0.00033698,14]
[360007208,1746477060123,-346.754623,0.00033698,14]
[360007209,1746477060133,-151.0,0.00033698,14]
[360007210,1746477060143,-164.637409,0.00033698,14]
[360007211,1746477060153,-247.754589,0.00033698,14]
[360007212,1746477060162,-151.0,0.00033698,14]
[360007213,1746477060172,-151.0,0.00033698,14]
[360007214,1746477060182,-1954.51,0.00033698,8]
[360007215,1746477060191,-719.2,0.00033698,8]
[360007216,1746477060201,-169.539145,0.00033698,14]
[360007217,1746477060211,-169.539145,0.00033698,14]
[360007218,1746477060221,-169.539145,0.00033698,14]
[360007219,1746477060230,-169.539145,0.00033698,14]
[360007220,1746477060239,-400.0,0.00033698,8]
[360007221,1746477060249,-400.0,0.00033698,8]
[360007222,1746477060258,-400.0,0.00033698,8]
[360007223,1746477060268,-253.416103,0.00033698,14]
[360007224,1746477060278,-253.416103,0.00033698,14]
[360007225,1746477060287,-400.0,0.00033698,8]
[360007226,1746477060297,-253.416103,0.00033698,14]
[360007227,1746477060306,-253.416103,0.00033698,14]
[360007228,1746477060316,-400.0,0.00033698,8]
[360007229,1746477060326,-444.85,0.00033698,8]
[360007230,1746477060336,-400.0,0.00033698,8]
[360007231,1746477060346,-676.07,0.00033698,8]
[360007232,1746477060355,-206.545488,0.00033698,14]
[360007233,1746477060365,-206.545488,0.00033698,14]
[360007234,1746477060375,-206.545488,0.00033698,14]
[360007235,1746477060385,-206.545488,0.00033698,14]
[360007236,1746477060395,-400.0,0.00033698,8]
[360007237,1746477060404,-400.0,0.00033698,8]
[360007238,1746477060414,-631.57,0.00033698,8]
[360007239,1746477060424,-400.0,0.00033698,8]
[360007240,1746477060434,-400.0,0.00033698,8]
[360007241,1746477060444,-454.95,0.00033698,8]
[360007242,1746477060453,-334.56621458,0.00033698,8]
[360007243,1746477060463,-479.7,0.00033698,8]
[360007244,1746477060472,-451.03497953,0.00033698,8]
[360007245,1746477060482,-400.0,0.00033698,8]
[360007246,1746477060492,-400.0,0.00033698,8]
[360007247,1746477060502,-400.0,0.00033698,8]
[360007248,1746477060511,-400.0,0.00033698,8]
[360007249,1746477060521,-400.0,0.00033698,8]
[360007250,1746477060531,-639.16,0.00033698,8]
[360007251,1746477060541,-151.0,0.00033698,14]
[360007252,1746477060551,-400.0,0.00033698,8]
[360007253,1746477060560,-400.0,0.00033698,8]
[360007254,1746477060570,-151.0,0.00033698,14]
[360007255,1746477060580,-151.0,0.00033698,14]
[360007256,1746477060590,-507.79,0.00033698,8]
[360007257,1746477060600,-400.0,0.00033698,8]
[360007258,1746477060609,-400.0,0.00033698,8]
[360007259,1746477060619,-400.0,0.00033698,8]
[360007260,1746477060628,-400.0,0.00033698,8]
[360007261,1746477060638,-151.0,0.00033698,14]
[360007262,1746477060648,-151.0,0.00033698,14]
[360007263,1746477060658,-562.08,0.00033698,8]
[360007264,1746477060668,-402.903244,0.00033698,14]
[360007265,1746477060678,-402.903244,0.00033698,14]
[360007266,1746477060687,-400.0,0.00033698,8]
[360007267,1746477060697,-402.903244,0.00033698,14]
[360007268,1746477060706,-402.903244,0.00033698,14]
[360007269,1746477060716,-504.71,0.00033698,8]
[360007270,1746477060726,-207.76171077,0.00033698,8]
[360007271,1746477060735,-458.02,0.00033698,8]
[360007272,1746477060745,-151.0,0.00033698,14]
[360007273,1746477060754,-151.0,0.00033698,14]
[360007274,1746477060764,-400.0,0.00033698,8]
[360007275,1746477060773,-315.99680839,0.00033698,8]
[360007276,1746477060783,-690.49,0.00033698,8]
[360007277,1746477060792,-400.0,0.00033698,8]
[360007278,1746477060802,-1211.7,0.00033698,8]
[360007279,1746477060811,-400.0,0.00033698,8]
[360007280,1746477060820,-716.28,0.00033698,8]
[360007281,1746477060830,-400.0,0.00033698,8]
[360007282,1746477060840,-644.66,0.00033698,8]
[360007283,1746477060850,-400.0,0.00033698,8]
[360007284,1746477060860,-400.0,0.00033698,8]
[360007285,1746477060869,-400.0,0.00033698,8]
[360007286,1746477060878,-730.5,0.00033698,8]
[360007287,1746477060887,-421.79091668,0.00033698,8]
[360007288,1746477060896,-400.0,0.00033698,8]
[360007289,1746477060906,-557.119261,0.00033698,14]
[360007290,1746477060915,-557.119261,0.00033698,14]
[360007291,1746477060925,-400.0,0.00033698,8]
[360007292,1746477060934,-400.0,0.00033698,8]
[360007293,1746477060944,-557.119261,0.00033698,14]
[360007294,1746477060954,-500.0,0.00033698,8]
[360007295,1746477060963,-557.119261,0.00033698,14]
[360007296,1746477060973,-299.116884,0.00033698,14]
[360007297,1746477060983,-400.0,0.00033698,8]
[360007298,1746477060992,-474.85,0.00033698,8]
[360007299,1746477061001,-407.65211754,0.00033698,8]
[360007300,1746477061011,-400.0,0.00033698,8]
[360007301,1746477061020,-400.0,0.00033698,8]
[360007302,1746477061029,-400.0,0.00033698,8]
[360007303,1746477061038,-2439.35,0.00033698,8]
[360007304,1746477061047,-724.61,0.00033698,8]
[360007305,1746477061056,-400.0,0.00033698,8]
[360007306,1746477061066,-706.96,0.00033698,8]
[360007307,1746477061075,-499.18,0.00033698,8]
[360007308,1746477061084,-400.0,0.00033698,8]
[360007309,1746477061094,-400.0,0.00033698,8]
[360007310,1746477061103,-400.0,0.00033698,8]
[360007311,1746477061112,-473.77,0.00033698,8]
[360007312,1746477061121,-3364.55,0.00033698,8]
[360007313,1746477061131,-400.0,0.00033698,8]
[360007314,1746477061140,-714.95,0.00033698,8]
[360007315,1746477061149,-400.0,0.00033698,8]
[360007316,1746477061158,-500.0,0.00033698,8]
[360007317,1746477061168,-400.0,0.00033698,8]
[360007318,1746477061177,-400.0,0.00033698,8]
[360007319,1746477061187,-400.0,0.00033698,8]
[360007320,1746477061196,-400.0,0.00033698,8]
[360007321,1746477061206,-422.23,0.00033698,8]
[360007322,1746477061215,-400.0,0.00033698,8]
[360007323,1746477061224,-400.0,0.00033698,8]
[360007324,1746477061234,-400.0,0.00033698,8]
[360007325,1746477061243,-400.0,0.00033698,8]
[360007326,1746477061252,-715.56,0.00033698,8]
[360007327,1746477061261,-424.41903197,0.00033698,8]
[360007328,1746477061271,-643.8,0.00033698,8]
[360007329,1746477061281,-400.0,0.00033698,8]
[360007330,1746477061290,-400.0,0.00033698,8]
[360007331,1746477061299,-400.0,0.00033698,8]
[360007332,1746477061309,-400.0,0.00033698,8]
[360007333,1746477061319,-826.75,0.00033698,8]
[360007334,1746477061328,-1300.61,0.00033698,8]
[360007335,1746477061338,-1570.62,0.00033698,8]
[360007336,1746477061347,-400.0,0.00033698,8]
[360007337,1746477061357,-400.0,0.00033698,8]
[360007338,1746477061367,-208.26527506,0.00033698,8]
[360007339,1746477061376,-923.0,0.00033698,8]
[360007340,1746477061386,-400.0,0.00033698,8]
[360007341,1746477061395,-400.0,0.00033698,8]
[360007342,1746477061404,-400.0,0.00033698,8]
[360007343,1746477061414,-400.0,0.00033698,8]
[360007344,1746477061424,-282.57376618,0.00033698,8]
[360007345,1746477061433,-400.0,0.00033698,8]
[360007346,1746477061442,-400.0,0.00033698,8]
[360007347,1746477061452,-407.51,0.00033698,8]
[360007348,1746477061462,-186.901476,0.00033698,14]
[360007349,1746477061471,-518.33,0.00033698,8]
[360007350,1746477061481,-400.0,0.00033698,8]
[360007351,1746477061491,-151.0,0.00033698,14]
[360007352,1746477061502,-151.0,0.00033698,14]
[360007353,1746477061513,-400.0,0.00033698,8]
[360007354,1746477061523,-400.0,0.00033698,8]
[360007355,1746477061644,-400.0,0.00033698,8]
[360007356,1746477061655,-400.0,0.00033698,8]
[360007357,1746477061664,-850.47,0.00033698,8]
[360007358,1746477061675,-400.0,0.00033698,8]
[360007359,1746477061685,-896.58,0.00033698,8]
[360007360,1746477061694,-867.32,0.00033698,8]
[360007361,1746477061704,-1581.59,0.00033698,8]
[360007362,1746477061714,-287.08755603,0.00033698,8]
[360007363,1746477061723,-779.84,0.00033698,8]
[360007364,1746477061732,-412.63,0.00033698,8]
[360007365,1746477061742,-1026.12,0.00033698,8]
[360007366,1746477061752,-400.0,0.00033698,8]
[360007367,1746477061761,-963.38,0.00033698,8]
[360007368,1746477061770,-400.0,0.00033698,8]
[360007369,1746477061780,-400.0,0.00033698,8]
[360007370,1746477061789,-400.0,0.00033698,8]
[360007371,1746477061799,-1360.62,0.00033698,8]
[360007372,1746477061808,-400.0,0.00033698,8]
[360007373,1746477061818,-400.0,0.00033698,8]
[360007374,1746477061828,-3350.06,0.00033698,2]
[360007375,1746477061837,-843.52,0.00033698,8]
[360007376,1746477061847,-400.0,0.00033698,8]
[360007377,1746477061856,-400.0,0.00033698,8]
[360007378,1746477061866,-400.0,0.00033698,8]
[360007379,1746477061876,-400.0,0.00033698,8]
[360007380,1746477061885,-400.0,0.00033698,8]
[360007381,1746477061895,-400.0,0.00033698,8]
[360007382,1746477061904,-491.06,0.00033698,8]
[360007383,1746477061914,-400.0,0.00033698,8]
[360007384,1746477061926,-400.0,0.00033698,8]
[360007385,1746477061936,-749.47,0.00033698,8]
[360007386,1746477061945,-417.03,0.00033698,8]
[360007387,1746477061955,-400.0,0.00033698,8]
[360007388,1746477061964,-1603.07,0.00033698,8]
[360007389,1746477061974,-400.0,0.00033698,8]
[360007390,1746477061984,-521.5591642,0.00033698,8]
[360007391,1746477061993,-400.0,0.00033698,8]
[360007392,1746477062003,-151.0,0.00033698,14]
[360007393,1746477062015,-402.99218453,0.00033698,8]
[360007394,1746477062025,-151.0,0.00033698,14]
[360007395,1746477062034,-400.0,0.00033698,8]
[360007396,1746477062044,-400.0,0.00033698,8]
[360007397,1746477062054,-400.0,0.00033698,8]
[360007398,1746477062063,-526.44817837,0.00033698,8]
[360007399,1746477062073,-400.0,0.00033698,8]
[360007400,1746477062083,-1004.78,0.00033698,8]
[360007401,1746477062092,-441.29,0.00033698,8]
[360007402,1746477062101,-400.0,0.00033698,8]
[360007403,1746477062111,-400.0,0.00033698,8]
[360007404,1746477062120,-6760.003047,0.00033698,2]
[360007405,1746477062130,-6760.003047,0.00033698,2]
[360007406,1746477062140,-6760.003047,0.00033698,2]
[360007407,1746477062150,-1250.72,0.00033698,8]
[360007408,1746477062159,-6760.003047,0.00033698,2]
[360007409,1746477062169,-400.0,0.00033698,8]
[360007410,1746477062179,-400.0,0.00033698,8]
[360007411,1746477062189,-535.58,0.00033698,8]
[360007412,1746477062199,-400.0,0.00033698,8]
[360007413,1746477062208,-400.0,0.00033698,8]
[360007414,1746477062217,-400.0,0.00033698,8]
[360007415,1746477062227,-606.68,0.00033698,8]
[360007416,1746477062236,-941.65,0.00033698,8]
[360007417,1746477062245,-553.65,0.00033698,8]
[360007418,1746477062254,-630.89,0.00033698,8]
[360007419,1746477062264,-992.75,0.00033698,8]
[360007420,1746477062273,-400.0,0.00033698,8]
[360007421,1746477062282,-400.0,0.00033698,8]
[360007422,1746477062291,-400.0,0.00033698,8]
[360007423,1746477062301,-1225.91,0.00033698,8]
[360007424,1746477062310,-307.102977,0.00033698,14]
[360007425,1746477062320,-307.102977,0.00033698,14]
[360007426,1746477062330,-400.0,0.00033698,8]
[360007427,1746477062339,-307.102977,0.00033698,14]
[360007428,1746477062349,-307.102977,0.00033698,14]
[360007429,1746477062359,-400.0,0.00033698,8]
[360007430,1746477062368,-407.22957232,0.00033698,8]
[360007431,1746477062378,-400.0,0.00033698,8]
[360007432,1746477062387,-407.11,0.00033698,8]
[360007433,1746477062396,-400.0,0.00033698,8]
[360007434,1746477062406,-400.0,0.00033698,8]
[360007435,1746477062415,-400.0,0.00033698,8]
[360007436,1746477062425,-400.0,0.00033698,8]
[360007437,1746477062435,-409.79425787,0.00033698,8]
[360007438,1746477062444,-400.0,0.00033698,8]
[360007439,1746477062453,-400.0,0.00033698,8]
[360007440,1746477062463,-400.0,0.00033698,8]
[360007441,1746477062473,-275.10983,0.00033698,2]
[360007442,1746477062484,-275.10983,0.00033698,2]
[360007443,1746477062493,-3599.95,0.00033698,8]
[360007444,1746477062503,-275.10983,0.00033698,2]
[360007445,1746477062512,-275.10983,0.00033698,2]
[360007446,1746477062522,-2897.28,0.00033698,8]
[360007447,1746477062535,-206.11133371,0.00033698,8]
[360007448,1746477062544,-481.35,0.00033698,8]
[360007449,1746477062554,-2205.69,0.00033698,8]
[360007450,1746477062563,-3492.57,0.00033698,8]
[360007451,1746477062573,-2970.08,0.00033698,8]
[360007452,1746477062583,-819.48,0.00033698,8]
[360007453,1746477062592,-1931.64,0.00033698,8]
[360007454,1746477062602,-400.0,0.00033698,8]
[360007455,1746477062612,-400.0,0.00033698,8]
[360007456,1746477062622,-400.0,0.00033698,8]
[360007457,1746477062632,-400.0,0.00033698,8]
[360007458,1746477062641,-438.54,0.00033698,8]
[360007459,1746477062651,-1111.28,0.00033698,8]
[360007460,1746477062662,-884.25,0.00033698,8]
[360007461,1746477062672,-400.0,0.00033698,8]
[360007462,1746477062681,-400.0,0.00033698,8]
[360007463,1746477062690,-400.0,0.00033698,8]
[360007464,1746477062699,-400.0,0.00033698,8]
[360007465,1746477062709,-400.0,0.00033698,8]
[360007466,1746477062719,-227.96173218,0.00033698,8]
[360007467,1746477062728,-179.31194484,0.00033698,8]
[360007468,1746477062738,-3000.85,0.00033698,8]
[360007469,1746477062747,-824.62,0.00033698,8]
[360007470,1746477062758,-400.0,0.00033698,8]
[360007471,1746477062766,-455.62,0.00033698,8]
[360007472,1746477062776,-400.0,0.00033698,8]
[360007473,1746477062785,-400.0,0.00033698,8]
[360007474,1746477062795,-476.47,0.00033698,8]
[360007475,1746477062804,-1260.63,0.00033698,8]
[360007476,1746477062813,-9929.17,0.00033698,8]
[360007477,1746477062823,-2404.52,0.00033698,8]
[360007478,1746477062832,-583.91,0.00033698,8]
[360007479,1746477062842,-400.0,0.00033698,8]
[360007480,1746477062851,-1366.67,0.00033698,8]
[360007481,1746477062860,-804.65,0.00033698,8]
[360007482,1746477062870,-247.08818862,0.00033698,8]
[360007483,1746477062880,-2610.48,0.00033698,8]
[360007484,1746477062889,-1582.3,0.00033698,8]
[360007485,1746477062898,-400.0,0.00033698,8]
[360007486,1746477062908,-400.0,0.00033698,8]
[360007487,1746477062917,-297.15303034,0.00033698,8]
[360007488,1746477062928,-400.0,0.00033698,8]
[360007489,1746477062938,-400.0,0.00033698,8]
[360007490,1746477062947,-1810.86,0.00033698,8]
[360007491,1746477062957,-400.0,0.00033698,8]
[360007492,1746477062966,-8390.32,0.00033698,8]
[360007493,1746477062975,-400.0,0.00033698,8]
[360007494,1746477062984,-430.80099196,0.00033698,8]
[360007495,1746477062994,-400.0,0.00033698,8]
[360007496,1746477063003,-644.41,0.00033698,8]
[360007497,1746477063013,-400.0,0.00033698,8]
[360007498,1746477063022,-400.0,0.00033698,8]
[360007499,1746477063032,-2005.57,0.00033698,8]
[360007500,1746477063042,-354.86014495,0.00033698,8]
[360007501,1746477063052,-433.92,0.00033698,8]
[360007502,1746477063061,-400.0,0.00033698,8]
[360007503,1746477063071,-400.0,0.00033698,8]
[360007504,1746477063080,-487.64,0.00033698,8]
[360007505,1746477063090,-522.10438796,0.00033698,8]
[360007506,1746477063099,-918.96,0.00033698,8]
[360007507,1746477063108,-400.0,0.00033698,8]
[360007508,1746477063118,-1000.0,0.00033698,8]
[360007509,1746477063128,-3259.27,0.00033698,8]
[360007510,1746477063137,-400.0,0.00033698,8]
[360007511,1746477063147,-2006.72,0.00033698,8]
[360007512,1746477063157,-497.93,0.00033698,8]
[360007513,1746477063167,-1436.28,0.00033698,8]
[360007514,1746477063177,-400.0,0.00033698,8]
[360007515,1746477063186,-469.87,0.00033698,8]
[360007516,1746477063196,-400.0,0.00033698,8]
[360007517,1746477063206,-1090.39,0.00033698,8]
[360007518,1746477063215,-400.0,0.00033698,8]
[360007519,1746477063225,-4062.47,0.00033698,8]
[360007520,1746477063235,-1114.33,0.00033698,8]
[360007521,1746477063244,-400.0,0.00033698,8]
[360007522,1746477063253,-2077.09,0.00033698,8]
[360007523,1746477063263,-400.0,0.00033698,8]
[360007524,1746477063272,-1456.15,0.00033698,8]
[360007525,1746477063281,-546.39,0.00033698,8]
[360007526,1746477063291,-400.0,0.00033698,8]
[360007527,1746477063300,-4476.54,0.00033698,8]
[360007528,1746477063310,-638.56,0.00033698,8]
[360007529,1746477063319,-400.0,0.00033698,8]
[360007530,1746477063328,-683.64,0.00033698,8]
[360007531,1746477063338,-400.0,0.00033698,8]
[360007532,1746477063347,-400.0,0.00033698,8]
[360007533,1746477063357,-619.75,0.00033698,8]
[360007534,1746477063367,-400.0,0.00033698,8]
[360007535,1746477063376,-325.563528,0.00033698,14]
[360007536,1746477063386,-400.0,0.00033698,8]
[360007537,1746477063396,-400.0,0.00033698,8]
[360007538,1746477063405,-526.54,0.00033698,8]
[360007539,1746477063415,-325.563519,0.00033698,14]
[360007540,1746477063425,-758.85,0.00033698,8]
[360007541,1746477063434,-24521.13,0.00033698,8]
[360007542,1746477063444,-400.0,0.00033698,8]
[360007543,1746477063453,-400.0,0.00033698,8]
[360007544,1746477063463,-400.0,0.00033698,8]
[360007545,1746477063472,-400.0,0.00033698,8]
[360007546,1746477063482,-400.0,0.00033698,8]
[360007547,1746477063492,-400.0,0.00033698,8]
[360007548,1746477063501,-1075.31,0.00033698,8]
[360007549,1746477063511,-400.0,0.00033698,8]
[360007550,1746477063522,-989.84,0.00033698,8]
[360007551,1746477063533,-400.0,0.00033698,8]
[360007552,1746477063545,-2581.34,0.00033698,8]
[360007553,1746477063554,-498.57,0.00033698,8]
[360007554,1746477063564,-562.95,0.00033698,8]
[360007555,1746477063574,-400.0,0.00033698,8]
[360007556,1746477063584,-563.56,0.00033698,8]
[360007557,1746477063594,-400.0,0.00033698,8]
[360007558,1746477063605,-2005.02,0.00033698,8]
[360007559,1746477063615,-400.0,0.00033698,8]
[360007560,1746477063625,-1801.43,0.00033698,8]
[360007561,1746477063635,-9097.21,0.00033698,8]
[360007562,1746477063646,-3028.71,0.00033698,8]
[360007563,1746477063656,-400.0,0.00033698,8]
[360007564,1746477063666,-400.0,0.00033698,8]
[360007565,1746477063677,-400.0,0.00033698,8]
[360007566,1746477063791,-1797.43,0.00033698,8]
[360007567,1746477063802,-531.52,0.00033698,8]
[360007568,1746477063812,-449.113188,0.00033698,14]
[360007569,1746477063822,-449.113188,0.00033698,14]
[360007570,1746477063832,-6864.69,0.00033698,8]
[360007571,1746477063841,-400.0,0.00033698,8]
[360007572,1746477063851,-400.0,0.00033698,8]
[360007573,1746477063860,-4586.98,0.00033698,8]
[360007574,1746477063870,-449.113188,0.00033698,14]
[360007575,1746477063879,-449.113188,0.00033698,14]
[360007576,1746477063889,-1501.28,0.00033698,8]
[360007577,1746477063898,-400.0,0.00033698,8]
[360007578,1746477063907,-400.0,0.00033698,8]
[360007579,1746477063916,-2940.89,0.00033698,8]
[360007580,1746477063926,-400.0,0.00033698,2]
[360007581,1746477063936,-3563.17,0.00033698,8]
[360007582,1746477063946,-523.85,0.00033698,8]
[360007583,1746477063956,-400.0,0.00033698,8]